bitfinex/quotes_ETHUSD_20230110
["timestamp","ask_amount","ask_price","bid_price","bid_amount"]
[1673382340535,0.066,1343.8,1343.5,8.51216]
[1673382340723,14.002,1343.9,1343.5,20.19456578]
[1673382340935,17.79966064,1343.9,1343.5,22.96587649]
[1673382341260,17.79966064,1343.9,1343.6,2.5]
[1673382341470,14.002,1343.9,1343.6,17.38471]
[1673382341721,14.002,1343.9,1343.6,17.45071]
[1673382342093,14.002,1343.9,1343.6,24.8934]
[1673382342094,14.06840318,1343.9,1343.6,24.8934]
[1673382342350,14.06840318,1343.9,1343.6,22.3934]
[1673382342930,14.06840318,1343.9,1343.6,7.50817]
[1673382343816,14.06840318,1343.9,1343.6,14.95086]
[1673382344648,17.86606382,1343.9,1343.6,14.95086]
[1673382344863,17.86606382,1343.9,1343.6,7.50817]
[1673382345954,3.79766064,1343.8,1343.6,0.066]
[1673382346171,3.79766064,1343.8,1343.5,0.005106]
[1673382346172,11.23938064,1343.8,1343.5,0.005106]
[1673382346326,11.24138064,1343.8,1343.5,0.005106]
[1673382346705,18.68310064,1343.8,1343.5,0.005106]
[1673382347056,3.79766064,1343.7,1343.5,0.005106]
[1673382347327,3.79766064,1343.6,1343.5,0.005106]
[1673382348173,3.79766064,1343.6,1343.5,0.002]
[1673382349268,18.68304064,1343.6,1343.5,0.002]
[1673382349489,3.79966064,1343.6,1343.5,0.002]
[1673382349826,7.3245907,1343.6,1343.5,0.002]
[1673382350155,7.3265907,1343.6,1343.5,0.002]
[1673382351594,1.06239876,1343.5,1343.4,0.11821087]
[1673382351804,4.8600594,1343.5,1343.4,0.11821087]
[1673382356030,27.1897794,1343.5,1343.4,0.11821087]
[1673382356234,31.01432235,1343.5,1343.4,0.11821087]
[1673382357653,16.12784235,1343.5,1343.4,0.11821087]
[1673382358221,8.68460235,1343.5,1343.4,0.11821087]
[1673382358585,4.8620594,1343.5,1343.4,0.11821087]
[1673382358905,3.8010594,1343.5,1343.4,15.00579087]
[1673382359098,3.7990594,1343.5,1343.4,7.62800087]
[1673382359277,3.7990594,1343.5,1343.4,0.18421087]
[1673382359645,3.7990594,1343.5,1343.4,0.11821087]
[1673382361746,34.56061434,1343.5,1343.4,0.11821087]
[1673382361911,42.00585434,1343.5,1343.4,0.11821087]
[1673382362976,45.00585434,1343.5,1343.4,0.11821087]
[1673382365300,34.56261434,1343.5,1343.4,0.11821087]
[1673382365508,34.56261434,1343.5,1343.4,15.00579087]
[1673382365509,17.8010594,1343.5,1343.4,15.00579087]
[1673382365761,17.8010594,1343.5,1343.4,0.18421087]
[1673382365933,17.8010594,1343.5,1343.4,0.11821087]
[1673382367275,0.00339876,1343.5,1343.4,8.62900087]
[1673382367485,0.00139876,1343.5,1343.4,12.86816665]
[1673382367703,0.00139876,1343.5,1343.4,8.69500087]
[1673382368341,0.00139876,1343.5,1343.4,16.13879087]
[1673382368553,0.00139876,1343.5,1343.4,18.63879087]
[1673382368733,0.002,1343.9,1343.4,25.58260574]
[1673382368949,29.924,1344.0,1343.5,4.40316578]
[1673382368950,29.862,1344.0,1343.5,4.40316578]
[1673382369291,33.65966064,1344.0,1343.6,22.32723]
[1673382369507,3.79966064,1344.0,1343.6,22.39323]
[1673382369715,3.79766064,1344.0,1343.6,22.39323]
[1673382369931,3.79766064,1344.0,1343.6,26.56639578]
[1673382370103,0.06640318,1343.9,1343.7,2.5]
[1673382370470,0.06640318,1343.9,1343.8,22.32474]
[1673382370471,3.18e-06,1343.9,1343.8,22.32474]
[1673382370785,3.18e-06,1343.9,1343.8,22.39074]
[1673382371147,14.18500264,1344.2,1343.8,22.39074]
[1673382371395,3.79766064,1344.1,1343.8,22.39074]
[1673382373986,3.79766064,1344.1,1343.8,14.94916]
[1673382375093,3.79766064,1344.1,1343.8,7.50758]
[1673382375310,3.79766064,1344.0,1343.8,0.066]
[1673382375464,3.79766064,1344.0,1343.6,18.45474]
[1673382375465,11.23826064,1344.0,1343.6,18.45474]
[1673382375669,3.79766064,1343.9,1343.6,8.2952]
[1673382375997,11.23868064,1343.9,1343.6,0.066]
[1673382376206,5.29766064,1343.8,1343.4,10.89027087]
[1673382376428,3.79966064,1343.8,1343.5,14.88622]
[1673382376630,3.79966064,1343.8,1343.5,14.95222]
[1673382376631,3.79766064,1343.8,1343.5,14.95222]
[1673382377506,3.79766064,1343.8,1343.5,22.39546]
[1673382378819,3.79766064,1343.8,1343.5,14.95222]
[1673382379274,3.79766064,1343.8,1343.5,22.39546]
[1673382380090,3.79766064,1343.8,1343.5,0.066]
[1673382380332,3.79766064,1343.7,1343.4,0.18421087]
[1673382380505,3.79766064,1343.6,1343.4,0.11821087]
[1673382380925,3.79766064,1343.6,1343.4,7.56197087]
[1673382381291,3.79766064,1343.6,1343.4,7.62797087]
[1673382381512,3.79766064,1343.6,1343.4,15.07176087]
[1673382382428,3.79766064,1343.6,1343.4,22.51555087]
[1673382386014,3.79766064,1343.6,1343.4,0.18421087]
[1673382386232,3.79766064,1343.6,1343.4,0.11821087]
[1673382389355,0.066,1343.7,1343.5,0.23]
[1673382389588,35.84918,1344.0,1343.5,0.23]
[1673382389589,33.08418,1344.0,1343.5,0.23]
[1673382389752,7.10607864,1343.9,1343.5,0.23]
[1673382389967,3.79766064,1343.8,1343.4,2.61821087]
[1673382390222,3.79766064,1343.7,1343.4,2.61821087]
[1673382390534,3.79766064,1343.7,1343.4,0.11821087]
[1673382391537,3.79766064,1343.6,1343.4,0.11821087]
[1673382392384,0.066,1343.7,1343.4,0.11821087]
[1673382392590,0.066,1343.7,1343.4,0.6847968]
[1673382392591,3.79766064,1343.7,1343.4,0.6847968]
[1673382392807,0.066,1343.8,1343.5,0.23]
[1673382393010,33.08418,1344.0,1343.5,0.23]
[1673382393372,3.79766064,1343.9,1343.5,0.23]
[1673382397840,3.79766064,1343.8,1343.4,8.41258506]
[1673382398114,4.1774267,1343.7,1343.4,8.41258506]
[1673382398268,3.79766064,1343.7,1343.4,0.18038506]
[1673382398479,3.79766064,1343.7,1343.4,0.11438506]
[1673382398728,3.79766064,1343.6,1343.4,0.11438506]
[1673382400098,0.066,1343.7,1343.4,0.11438506]
[1673382400257,3.79766064,1343.5,1343.4,0.11438506]
[1673382400726,0.066,1343.6,1343.4,0.11438506]
[1673382400938,25.04,1343.8,1343.4,0.11438506]
[1673382401258,6.30166064,1343.7,1343.4,0.11438506]
[1673382401415,6.30366064,1343.7,1343.4,0.11438506]
[1673382402357,3.79766064,1343.6,1343.4,0.11438506]
[1673382403096,3.79766064,1343.5,1343.4,0.11438506]
[1673382403410,4.1774267,1343.5,1343.4,0.11438506]
[1673382404145,3.79766064,1343.5,1343.4,22.44575506]
[1673382404354,3.79766064,1343.5,1343.4,15.06796506]
[1673382404774,3.79766064,1343.5,1343.4,22.51175506]
[1673382405138,3.79766064,1343.5,1343.4,15.06796506]
[1673382405510,3.79766064,1343.5,1343.4,7.62417506]
[1673382405844,3.79766064,1343.5,1343.4,0.18038506]
[1673382406039,3.79766064,1343.5,1343.4,0.11438506]
[1673382407510,2.68926062,1343.5,1343.4,0.11438506]
[1673382408177,0.066,1343.6,1343.4,23.51275506]
[1673382408383,22.176,1343.8,1343.4,23.57875506]
[1673382408624,3.79766064,1343.7,1343.4,16.13496506]
[1673382408989,3.79766064,1343.7,1343.4,23.57875506]
[1673382409194,3.79766064,1343.7,1343.4,16.13496506]
[1673382409444,3.79766064,1343.7,1343.4,23.57875506]
[1673382416066,3.79766064,1343.6,1343.4,0.18038506]
[1673382416228,3.79766064,1343.6,1343.4,0.11438506]
[1673382416763,3.79766064,1343.6,1343.4,7.55814506]
[1673382416972,3.79766064,1343.6,1343.4,7.62414506]
[1673382417432,3.79766064,1343.6,1343.4,15.06793506]
[1673382419380,3.79766064,1343.6,1343.4,0.18038506]
[1673382419637,3.79766064,1343.6,1343.4,0.11438506]
[1673382420222,4.9282527,1343.6,1343.4,0.11438506]
[1673382420434,3.79766064,1343.5,1343.4,0.11438506]
[1673382427839,3.79766064,1343.5,1343.4,1.18138506]
[1673382428148,0.066,1343.6,1343.4,23.51275506]
[1673382428364,14.002,1343.8,1343.4,23.57875506]
[1673382428672,3.79766064,1343.7,1343.4,23.57875506]
[1673382429255,3.79766064,1343.7,1343.5,2.5]
[1673382429500,0.066,1343.8,1343.6,22.32807]
[1673382429828,3.79766064,1343.8,1343.6,14.95138]
[1673382430151,3.79766064,1343.8,1343.6,22.39407]
[1673382431512,0.066,1343.9,1343.8,22.32474]
[1673382431730,0.02198,1344.0,1343.8,22.39074]
[1673382432035,14.18300264,1344.2,1343.8,22.39074]
[1673382432036,14.18500264,1344.2,1343.8,22.39074]
[1673382432242,3.79766064,1344.1,1343.8,22.39074]
[1673382432592,3.79766064,1344.1,1343.8,22.38784656]
[1673382436320,3.79766064,1344.1,1343.8,14.94626656]
[1673382437084,3.79766064,1344.1,1343.8,22.38784656]
[1673382438320,3.79766064,1344.1,1343.9,2.5]
[1673382438532,14.24900264,1344.2,1344.0,22.32141]
[1673382438720,17.98266328,1344.2,1344.0,22.38741]
[1673382439619,0.18500264,1344.2,1344.0,22.38741]
[1673382439786,0.18300264,1344.2,1344.0,22.38741]
[1673382440019,0.18300264,1344.2,1344.1,24.81976]
[1673382440215,0.18300264,1344.2,1344.1,24.88576]
[1673382440649,0.18300264,1344.2,1344.1,25.11576]
[1673382441820,0.18300264,1344.2,1344.1,22.61576]
[1673382442189,0.18300264,1344.2,1344.1,1.133]
[1673382442398,0.18300264,1344.2,1344.1,8.50692]
[1673382442618,2.64e-06,1344.2,1344.1,23.45276]
[1673382442856,2.64e-06,1344.2,1344.1,34.12268]
[1673382443397,2.64e-06,1344.2,1344.1,34.68098]
[1673382443713,0.18755282,1344.3,1344.2,23.38707736]
[1673382443875,0.18755282,1344.3,1344.2,26.68307736]
[1673382444869,0.13755282,1344.3,1344.2,26.68307736]
[1673382447288,0.13755282,1344.3,1344.2,11.80435736]
[1673382447641,1.19855282,1344.3,1344.2,3.06799736]
[1673382447772,0.13755282,1344.3,1344.2,14.88071736]
[1673382447983,0.13755282,1344.3,1344.2,14.94671736]
[1673382448181,0.13755282,1344.3,1344.2,22.38607736]
[1673382448390,0.13755282,1344.3,1344.2,14.94671736]
[1673382448600,0.13755282,1344.3,1344.2,7.50735736]
[1673382448870,0.13755282,1344.3,1344.2,0.06799736]
[1673382449025,0.13755282,1344.3,1344.2,8.50835736]
[1673382449239,0.13755282,1344.3,1344.2,23.45307736]
[1673382450967,0.13755282,1344.3,1344.2,23.68307736]
[1673382455642,1e-08,1344.3,1344.2,23.68307736]
[1673382456812,1.24855282,1344.4,1344.3,8.57912936]
[1673382457161,12.48447346,1344.4,1344.3,1.20631936]
[1673382457327,41.36299346,1344.4,1344.3,1.14031936]
[1673382457533,44.11876955,1344.4,1344.3,1.14031936]
[1673382458603,44.11876955,1344.4,1344.3,1.16293455]
[1673382458934,36.68050955,1344.4,1344.3,1.16293455]
[1673382459653,44.11876955,1344.4,1344.3,1.16293455]
[1673382460531,36.68050955,1344.4,1344.3,1.16293455]
[1673382461808,44.11876955,1344.4,1344.3,1.16293455]
[1673382463549,44.11876955,1344.4,1344.3,4.55e-06]
[1673382463749,48.28217791,1344.4,1344.3,4.55e-06]
[1673382464545,44.11876955,1344.4,1344.3,4.55e-06]
[1673382469797,44.13745955,1344.4,1344.3,4.55e-06]
[1673382478701,21.80398955,1344.4,1344.3,4.55e-06]
[1673382478906,21.75398955,1344.4,1344.3,4.55e-06]
[1673382480280,20.69298955,1344.4,1344.3,4.55e-06]
[1673382480498,17.93721346,1344.4,1344.3,4.55e-06]
[1673382481048,25.37547346,1344.4,1344.3,4.55e-06]
[1673382481258,32.81373346,1344.4,1344.3,4.55e-06]
[1673382481473,40.25199346,1344.4,1344.3,4.55e-06]
[1673382491737,25.37547346,1344.4,1344.3,4.55e-06]
[1673382491970,17.93721346,1344.4,1344.3,4.55e-06]
[1673382492143,32.81373346,1344.4,1344.3,4.55e-06]
[1673382492593,25.37547346,1344.4,1344.3,4.55e-06]
[1673382492769,43.59826255,1344.4,1344.3,4.55e-06]
[1673382492999,43.55946255,1344.4,1344.3,4.55e-06]
[1673382493200,43.56146255,1344.4,1344.3,4.55e-06]
[1673382493435,43.55946255,1344.4,1344.3,4.55e-06]
[1673382499498,0.00216178,1344.3,1343.9,23.5475]
[1673382499706,3.79766064,1344.2,1343.9,23.5475]
[1673382499964,17.58333398,1344.1,1343.9,15.3301]
[1673382500176,25.02525398,1344.1,1343.9,15.3301]
[1673382500582,25.02525398,1344.1,1343.9,0.066]
[1673382500771,25.02525398,1344.1,1343.8,3.5584]
[1673382502554,3.79766064,1344.0,1343.8,3.5584]
[1673382502970,3.79766064,1344.0,1343.8,3.0]
[1673382505121,11.23813064,1344.0,1343.8,3.0]
[1673382505367,26.12115064,1344.0,1343.7,25.4995]
[1673382505858,26.12115064,1344.0,1343.7,16.9342]
[1673382506065,26.12115064,1344.0,1343.7,16.3758]
[1673382506313,29.37424104,1344.0,1343.7,16.3758]
[1673382507366,26.12115064,1344.0,1343.7,16.3758]
[1673382508028,18.68060064,1344.0,1343.7,16.3758]
[1673382508638,26.12115064,1344.0,1343.7,16.3758]
[1673382509961,18.68060064,1344.0,1343.7,16.3758]
[1673382510616,3.79766064,1343.9,1343.7,16.3758]
[1673382510813,18.68082064,1343.8,1343.7,0.066]
[1673382511032,18.68082064,1343.8,1343.6,0.10669099]
[1673382511033,18.68282064,1343.8,1343.6,0.10669099]
[1673382511269,18.68282064,1343.8,1343.6,0.04069099]
[1673382511270,3.79766064,1343.7,1343.6,0.04069099]
[1673382511480,11.23979064,1343.7,1343.6,0.04069099]
[1673382511655,26.12605064,1343.7,1343.6,0.04069099]
[1673382512434,26.14266697,1343.7,1343.6,0.04069099]
[1673382517466,26.09266697,1343.7,1343.6,0.04069099]
[1673382517688,31.90336192,1343.7,1343.6,0.04069099]
[1673382517844,32.65548093,1343.7,1343.6,0.04069099]
[1673382519374,31.90336192,1343.7,1343.6,0.04069099]
[1673382520623,32.65548093,1343.7,1343.6,0.04069099]
[1673382521454,31.90336192,1343.7,1343.6,0.04069099]
[1673382521780,40.48748093,1343.7,1343.6,0.04069099]
[1673382522313,40.55003093,1343.7,1343.6,0.04069099]
[1673382523656,44.69424505,1343.7,1343.6,0.04069099]
[1673382523828,43.55003093,1343.7,1343.6,0.04069099]
[1673382524668,47.69424505,1343.7,1343.6,0.04069099]
[1673382525088,47.71307505,1343.7,1343.6,0.04069099]
[1673382525403,46.96095604,1343.7,1343.6,0.04069099]
[1673382525616,52.17707505,1343.7,1343.6,0.04069099]
[1673382526469,48.03286093,1343.7,1343.6,0.04069099]
[1673382526874,35.73686093,1343.7,1343.6,0.04069099]
[1673382528297,48.03286093,1343.7,1343.6,0.04069099]
[1673382529542,47.28074192,1343.7,1343.6,0.04069099]
[1673382529733,52.17707505,1343.7,1343.6,0.04069099]
[1673382530157,48.03286093,1343.7,1343.6,0.04069099]
[1673382530618,47.98286093,1343.7,1343.6,0.04069099]
[1673382533126,40.15086093,1343.7,1343.6,0.04069099]
[1673382533734,52.12707505,1343.7,1343.6,0.04069099]
[1673382533951,52.12707505,1343.7,1343.5,0.04069099]
[1673382534173,23.01036815,1343.6,1343.5,0.04069099]
[1673382534432,45.34043815,1343.6,1343.5,0.04069099]
[1673382534614,46.09255716,1343.6,1343.5,0.04069099]
[1673382534943,50.23677128,1343.6,1343.5,0.04069099]
[1673382535315,49.48465227,1343.6,1343.5,9.9e-07]
[1673382535530,49.48465227,1343.6,1343.4,0.11438506]
[1673382535752,16.18936587,1343.5,1343.4,0.11438506]
[1673382535962,31.07784587,1343.5,1343.4,0.11438506]
[1673382537241,47.12596488,1343.5,1343.4,0.11438506]
[1673382537456,17.038,1343.4,1343.3,6.51e-06]
[1673382537784,29.7796,1343.2,1343.1,0.01990651]
[1673382538096,50.57926064,1343.2,1343.1,0.01990651]
[1673382538297,51.33137965,1343.2,1343.1,0.01990651]
[1673382538470,56.47091762,1343.2,1343.1,0.01990651]
[1673382539223,2.5,1343.0,1342.9,0.04151612]
[1673382539457,2.5,1343.0,1342.6,0.03029071]
[1673382539458,34.30042476,1343.0,1342.6,0.03029071]
[1673382539667,14.0,1342.7,1342.6,0.03029071]
[1673382539845,0.002,1342.7,1342.6,1.09729071]
[1673382540039,7.55177965,1342.9,1342.6,1.09729071]
[1673382540249,3.002,1342.9,1342.7,0.002]
[1673382540509,3.79766064,1342.9,1342.7,0.002]
[1673382540683,3.0,1342.8,1342.7,0.002]
[1673382541511,6.79766064,1342.8,1342.7,0.002]
[1673382541720,6.79966064,1342.8,1342.7,0.002]
[1673382543158,21.69390064,1342.8,1342.7,0.002]
[1673382543847,29.14102064,1342.8,1342.7,0.002]
[1673382544320,34.2062267,1342.8,1342.7,0.002]
[1673382544699,51.02969793,1342.8,1342.7,0.002]
[1673382545117,58.46369793,1342.8,1342.7,0.002]
[1673382545525,51.01657793,1342.8,1342.7,0.002]
[1673382545733,47.33984571,1342.8,1342.7,0.002]
[1673382546632,20.14960571,1342.8,1342.7,0.002]
[1673382546781,34.2917267,1342.8,1342.7,0.002]
[1673382546995,26.8446067,1342.8,1342.7,0.002]
[1673382547268,41.7388467,1342.8,1342.7,0.002]
[1673382547539,34.2917267,1342.8,1342.7,0.002]
[1673382547768,41.7027767,1342.8,1342.7,0.002]
[1673382547975,34.2556567,1342.8,1342.7,0.002]
[1673382548218,41.7027767,1342.8,1342.7,0.002]
[1673382548571,34.2556567,1342.8,1342.7,0.002]
[1673382549414,29.19045064,1342.8,1342.7,0.002]
[1673382549773,36.63757064,1342.8,1342.7,0.002]
[1673382553766,48.93357064,1342.8,1342.7,0.002]
[1673382553977,49.68568965,1342.8,1342.7,0.002]
[1673382554186,15.04832965,1342.8,1342.7,0.002]
[1673382554400,34.39076162,1342.8,1342.7,0.002]
[1673382554613,26.94364162,1342.8,1342.7,0.002]
[1673382554774,34.34317162,1342.8,1342.7,0.002]
[1673382555519,41.79029162,1342.8,1342.7,0.002]
[1673382555847,53.33417261,1342.8,1342.7,0.002]
[1673382557300,54.08629162,1342.8,1342.7,0.002]
[1673382559121,54.08629162,1342.8,1342.6,0.03029071]
[1673382559303,23.2062898,1342.7,1342.6,0.03029071]
[1673382559516,45.5513298,1342.7,1342.6,0.03029071]
[1673382560150,46.30344881,1342.7,1342.6,0.03029071]
[1673382565601,45.5513298,1342.7,1342.6,0.03029071]
[1673382567693,46.30344881,1342.7,1342.6,0.03029071]
[1673382569685,40.89481965,1342.7,1342.6,0.03029071]
[1673382569889,40.14270064,1342.7,1342.6,0.03029071]
[1673382572871,40.14270064,1342.7,1342.6,0.02659156]
[1673382576566,17.79966064,1342.7,1342.6,0.02659156]
[1673382576777,32.69502064,1342.7,1342.6,0.02659156]
[1673382576969,39.9724598,1342.7,1342.6,0.02659156]
[1673382577179,47.4201398,1342.7,1342.6,0.02659156]
[1673382577830,47.4221398,1342.7,1342.6,0.02659156]
[1673382578006,47.4201398,1342.7,1342.6,0.02659156]
[1673382580555,40.14270064,1342.7,1342.6,0.02659156]
[1673382580767,32.69502064,1342.7,1342.6,0.02659156]
[1673382581018,40.14270064,1342.7,1342.6,0.02659156]
[1673382581188,17.79966064,1342.7,1342.6,1.21359156]
[1673382581396,3.79966064,1342.7,1342.6,1.21359156]
[1673382581627,3.79766064,1342.7,1342.6,1.33495072]
[1673382581852,11.24534064,1342.7,1342.6,1.33495072]
[1673382582027,11.24734064,1342.7,1342.6,1.33495072]
[1673382582709,11.24734064,1342.7,1342.6,1.21359156]
[1673382583078,11.24734064,1342.7,1342.6,0.02659156]
[1673382583079,18.69502064,1342.7,1342.6,0.02659156]
[1673382583395,26.14270064,1342.7,1342.6,1.21359156]
[1673382583607,26.14270064,1342.7,1342.6,0.02659156]
[1673382585019,40.14270064,1342.7,1342.6,0.02659156]
[1673382585232,45.0890077,1342.7,1342.6,0.02659156]
[1673382592163,45.18876401,1342.7,1342.6,0.02659156]
[1673382600322,48.18876401,1342.7,1342.6,0.02659156]
[1673382604162,25.34709695,1342.7,1342.6,1.21359156]
[1673382604679,17.89941695,1342.7,1342.6,1.21359156]
[1673382605039,17.89941695,1342.7,1342.6,0.02659156]
[1673382605300,7.54943631,1342.7,1342.6,1.21359156]
[1673382605508,0.10175631,1342.7,1342.6,1.98580819]
[1673382605719,7.54743631,1342.7,1342.6,1.98580819]
[1673382605884,11.34709695,1342.7,1342.6,0.02659156]
[1673382606103,26.24245695,1342.7,1342.6,0.02351485]
[1673382606309,26.14270064,1342.7,1342.6,0.02351485]
[1673382609245,18.69502064,1342.7,1342.6,0.02351485]
[1673382609456,26.14270064,1342.7,1342.6,0.02351485]
[1673382609678,31.6514907,1342.7,1342.6,0.02351485]
[1673382610758,26.14270064,1342.7,1342.6,0.02351485]
[1673382614602,29.14270064,1342.7,1342.6,0.02351485]
[1673382622691,21.69502064,1342.7,1342.6,0.02351485]
[1673382624266,29.14270064,1342.7,1342.6,0.02351485]
[1673382626163,21.69502064,1342.7,1342.6,0.02351485]
[1673382626371,19.51380019,1342.7,1342.6,0.02351485]
[1673382626599,6.79966064,1342.7,1342.6,0.02351485]
[1673382626819,14.24934064,1342.7,1342.6,0.02351485]
[1673382627053,29.14270064,1342.7,1342.6,0.02351485]
[1673382627787,26.14270064,1342.7,1342.6,0.02351485]
[1673382628191,3.79966064,1342.7,1342.6,1.21051485]
[1673382628505,0.002,1342.7,1342.6,1.21051485]
[1673382628712,7.436,1342.8,1342.6,5.21465173]
[1673382628951,11.23366064,1342.8,1342.6,5.28065173]
[1673382629104,11.23366064,1342.8,1342.6,1.27651485]
[1673382629445,7.436,1342.8,1342.6,1.21051485]
[1673382629636,7.436,1342.8,1342.7,0.12105149]
[1673382630282,7.436,1342.8,1342.7,0.1188524]
[1673382631246,7.436,1342.8,1342.7,22.4618924]
[1673382631460,7.436,1342.8,1342.7,26.76295388]
[1673382631461,6.32705232,1342.8,1342.7,26.76295388]
[1673382631781,6.32705232,1342.8,1342.7,19.31527388]
[1673382631986,6.32705232,1342.8,1342.7,22.31527388]
[1673382632147,6.32905232,1342.8,1342.7,22.31327388]
[1673382632355,6.32705232,1342.8,1342.7,22.31527388]
[1673382632647,6.32705232,1342.8,1342.7,18.3102124]
[1673382637199,6.32705232,1342.8,1342.7,3.4148524]
[1673382637413,6.32705232,1342.8,1342.7,3.3488524]
[1673382637626,6.32705232,1342.8,1342.7,4.3058524]
[1673382637842,21.22129232,1342.8,1342.7,4.3058524]
[1673382638054,28.66841232,1342.8,1342.7,1.3058524]
[1673382638272,6.32705232,1342.8,1342.7,3.0]
[1673382638613,13.77417232,1342.8,1342.7,3.0]
[1673382638766,6.32705232,1342.8,1342.6,10.53758485]
[1673382639138,6.32705232,1342.8,1342.6,17.98565485]
[1673382639609,6.32705232,1342.8,1342.6,25.43388485]
[1673382639967,6.32705232,1342.8,1342.7,2.73]
[1673382640128,6.32705232,1342.8,1342.7,10.67768]
[1673382640342,6.32705232,1342.8,1342.7,10.74368]
[1673382640583,6.32705232,1342.8,1342.7,25.63904]
[1673382641501,6.32705232,1342.8,1342.7,10.74368]
[1673382641712,6.32705232,1342.8,1342.7,18.19136]
[1673382642062,6.32705232,1342.8,1342.7,25.63904]
[1673382643114,6.32705232,1342.8,1342.7,18.19136]
[1673382643442,6.32705232,1342.8,1342.7,25.63904]
[1673382643810,6.32705232,1342.8,1342.7,18.19136]
[1673382645243,6.32705232,1342.8,1342.7,25.63904]
[1673382645543,6.32705232,1342.8,1342.7,18.19136]
[1673382647979,6.32705232,1342.8,1342.7,25.63904]
[1673382650157,6.32705232,1342.8,1342.7,18.19136]
[1673382650337,6.32705232,1342.8,1342.7,25.63904]
[1673382650548,6.32705232,1342.8,1342.7,18.19136]
[1673382650962,6.32705232,1342.8,1342.7,25.63904]
[1673382652697,6.32705232,1342.8,1342.7,26.19784]
[1673382653831,6.32705232,1342.8,1342.7,26.19540934]
[1673382654016,6.32705232,1342.8,1342.7,25.63660934]
[1673382655968,4.35573903,1342.8,1342.7,29.63448029]
[1673382656178,4.35373903,1342.8,1342.7,29.63448029]
[1673382656617,4.35373903,1342.8,1342.7,25.63660934]
[1673382657917,0.066,1342.9,1342.7,29.63294741]
[1673382658073,8.2729,1343.1,1342.7,32.40507079]
[1673382658074,8.2749,1343.1,1342.7,32.40507079]
[1673382658285,8.2749,1343.1,1342.9,2.5]
[1673382658606,0.002,1343.1,1343.0,22.56803]
[1673382658822,56.2091096,1343.4,1343.0,22.63403]
[1673382659073,60.00677024,1343.4,1343.0,22.63403]
[1673382659229,66.1516571,1343.4,1343.0,22.63403]
[1673382660819,66.1516571,1343.4,1343.0,22.40403]
[1673382661954,56.2091096,1343.4,1343.0,22.40403]
[1673382664583,3.79766064,1343.3,1343.0,0.066]
[1673382664826,14.8898,1343.2,1342.9,15.5989]
[1673382665053,14.8918,1343.2,1342.9,15.5989]
[1673382665942,7.4469,1343.2,1342.9,15.5989]
[1673382669424,7.4469,1343.2,1342.9,23.0454]
[1673382669637,7.4469,1343.2,1342.9,15.5989]
[1673382671238,7.4469,1343.2,1342.9,23.04531]
[1673382671239,0.002,1343.2,1342.9,23.04531]
[1673382671481,26.13401064,1343.3,1342.9,23.04531]
[1673382671691,7.44498,1343.2,1342.9,15.5989]
[1673382672016,7.44698,1343.2,1342.9,15.5989]
[1673382672207,0.002,1343.2,1342.9,23.04537]
[1673382672427,33.67258615,1343.3,1342.9,23.04537]
[1673382673333,26.22774615,1343.3,1342.9,30.49194]
[1673382673544,26.22774615,1343.3,1342.9,15.5989]
[1673382673793,26.22774615,1343.3,1342.9,23.04529]
[1673382674009,3.79966064,1343.3,1342.9,37.93843]
[1673382674261,3.79766064,1343.3,1342.9,37.93843]
[1673382675067,74.16197987,1343.4,1342.9,37.93843]
[1673382675276,74.16197987,1343.4,1343.0,15.12169]
[1673382675277,70.2091096,1343.4,1343.0,15.12169]
[1673382675434,70.2091096,1343.4,1343.0,15.18769]
[1673382675867,70.2091096,1343.4,1343.0,7.74168]
[1673382676082,77.6529996,1343.4,1343.0,7.74168]
[1673382676325,85.0968896,1343.4,1343.0,7.74168]
[1673382676935,77.6529996,1343.4,1343.0,7.74168]
[1673382677271,77.6529996,1343.4,1343.0,15.18769]
[1673382677469,70.2091096,1343.4,1343.0,22.6337]
[1673382678377,6.511,1343.3,1343.0,22.6337]
[1673382678635,6.513,1343.3,1343.0,22.6337]
[1673382685989,6.513,1343.3,1343.0,15.18769]
[1673382686165,6.513,1343.3,1343.0,7.74168]
[1673382686371,6.513,1343.3,1343.0,15.18769]
[1673382686855,6.513,1343.3,1343.0,7.74168]
[1673382687003,13.95739,1343.3,1343.0,0.296]
[1673382687219,6.513,1343.3,1343.0,7.67587]
[1673382687443,6.513,1343.3,1343.0,7.74187]
[1673382689126,6.513,1343.3,1343.0,15.18788]
[1673382693765,6.513,1343.3,1343.0,22.63389]
[1673382696573,6.513,1343.3,1343.0,7.74187]
[1673382696961,6.513,1343.3,1343.0,7.49187]
[1673382697151,13.95739,1343.3,1343.0,0.066]
[1673382697319,21.40178,1343.3,1342.9,31.50429]
[1673382697726,13.95739,1343.3,1342.9,31.50429]
[1673382697939,13.95739,1343.3,1342.9,24.0582]
[1673382698202,28.84609,1343.3,1342.9,24.0582]
[1673382699354,28.84609,1343.3,1343.0,0.23]
[1673382700388,28.84609,1343.3,1342.9,24.0582]
[1673382700561,36.38472551,1343.3,1342.9,24.0582]
[1673382701335,40.18238615,1343.3,1342.9,24.0582]
[1673382703403,32.73799615,1343.3,1342.9,24.0582]
[1673382704163,40.18234615,1343.3,1342.9,24.0582]
[1673382704356,32.73799615,1343.3,1342.9,24.0582]
[1673382706785,6.513,1343.3,1343.0,14.89202]
[1673382707014,6.513,1343.3,1343.0,15.18802]
[1673382707352,6.513,1343.3,1343.0,17.68802]
[1673382707506,6.513,1343.3,1343.0,25.13403]
[1673382708560,6.513,1343.3,1343.0,22.63403]
[1673382709199,6.513,1343.3,1343.0,15.18802]
[1673382709414,6.513,1343.3,1343.0,22.63403]
[1673382710439,6.513,1343.3,1343.0,15.18802]
[1673382710583,6.513,1343.3,1343.0,22.63403]
[1673382712176,6.513,1343.3,1343.0,15.18802]
[1673382716305,6.513,1343.3,1343.0,17.68802]
[1673382716510,6.513,1343.3,1343.0,25.13403]
[1673382717347,6.513,1343.3,1343.0,22.63403]
[1673382718543,6.513,1343.3,1343.0,15.18802]
[1673382719769,3.79766064,1343.2,1343.0,0.066]
[1673382720019,10.19122606,1343.1,1342.7,42.03267]
[1673382720221,10.19122606,1343.1,1342.7,27.1378]
[1673382720222,28.02971024,1343.1,1342.7,27.1378]
[1673382720440,28.02971024,1343.1,1342.7,24.6966]
[1673382720441,23.90514606,1343.1,1342.7,24.6966]
[1673382720600,23.90514606,1343.1,1342.7,24.1378]
[1673382720807,2.39051461,1343.0,1342.7,24.1378]
[1673382721026,9.83654461,1343.0,1342.7,24.1378]